bitfinex-derivatives/quotes_BTCF0:USTF0_20260127
["timestamp","ask_amount","ask_price","bid_price","bid_amount"]
[1769498594265,0.011309,88524.0,88510.0,0.16318206]
[1769498595373,0.02237163,88524.0,88510.0,0.16318206]
[1769498597571,0.0013,88528.0,88514.0,0.16318206]
[1769498597772,0.22605523,88535.0,88511.0,0.1018]
[1769498597773,0.01106289,88535.0,88518.0,0.17449206]
[1769498597967,0.01106289,88535.0,88520.0,0.011309]
[1769498598466,0.1018,88538.0,88522.0,0.011309]
[1769498598774,0.011307,88537.0,88519.0,0.011309]
[1769498598970,0.0223097,88537.0,88519.0,0.011309]
[1769498599370,0.0110027,88536.0,88519.0,0.011309]
[1769498605679,0.011308,88535.0,88519.0,0.011309]
[1769498607769,0.0110027,88536.0,88521.0,0.011309]
[1769498609282,0.011308,88535.0,88519.0,0.011309]
[1769498612489,0.02232805,88535.0,88519.0,0.011309]
[1769498612786,0.01102005,88534.0,88519.0,0.011309]
[1769498613383,0.011308,88533.0,88516.0,0.01131]
[1769498613583,0.011308,88530.0,88516.0,0.01131]
[1769498613776,0.011308,88533.0,88516.0,0.01131]
[1769498614170,0.011308,88533.0,88511.0,0.40432]
[1769498614171,0.01102053,88533.0,88517.0,0.1018]
[1769498615387,0.011308,88530.0,88517.0,0.1018]
[1769498615982,0.02232853,88533.0,88517.0,0.1018]
[1769498616283,0.01109011,88532.0,88517.0,0.1018]
[1769498617483,0.0013,88548.0,88520.0,0.16317998]
[1769498617684,0.0013,88548.0,88536.0,0.011307]
[1769498618078,0.0013,88548.0,88535.0,0.011307]
[1769498618485,0.0013,88548.0,88532.0,0.011308]
[1769498619982,0.0013,88548.0,88534.0,0.011308]
[1769498620184,0.0013,88548.0,88532.0,0.011308]
[1769498622589,0.011306,88547.0,88531.0,0.1018]
[1769498622791,0.0110341,88544.0,88531.0,0.1018]
[1769498623189,0.011307,88542.0,88531.0,0.1018]
[1769498623389,0.0223411,88542.0,88512.0,0.13529969]
[1769498623590,0.011307,88540.0,88522.0,0.011309]
[1769498624593,0.011307,88540.0,88523.0,0.52804]
[1769498625298,0.011307,88538.0,88523.0,0.52804]
[1769498626693,0.00684856,88545.0,88527.0,0.00104177]
[1769498626897,0.00684856,88545.0,88529.0,0.00104177]
[1769498628499,0.00684856,88545.0,88526.0,0.011309]
[1769498628891,0.00684856,88545.0,88527.0,0.00144636]
[1769498633196,0.00684856,88545.0,88528.0,0.01289782]
[1769498633501,0.00684856,88545.0,88529.0,0.00158982]
[1769498637602,0.0013,88548.0,88531.0,0.00159262]
[1769498637803,0.0013,88548.0,88533.0,0.00149772]
[1769498638103,0.01103572,88548.0,88533.0,0.00149772]
[1769498639101,0.01103572,88548.0,88529.0,0.01280572]
[1769498640704,0.011306,88547.0,88529.0,0.01280572]
[1769498641005,0.00973572,88546.0,88529.0,0.01280572]
[1769498641201,0.00973572,88546.0,88531.0,0.011308]
[1769498641702,0.00973572,88546.0,88534.0,0.011307]
[1769498642506,0.00973572,88546.0,88531.0,0.00148382]
[1769498642718,0.00973572,88546.0,88533.0,0.011308]
[1769498644820,0.00973572,88546.0,88531.0,0.00148382]
[1769498645119,0.00973572,88546.0,88532.0,0.011308]
[1769498646118,0.00987643,88539.0,88526.0,0.10176]
[1769498646316,0.00987643,88539.0,88526.0,0.113069]
[1769498647019,0.00987643,88539.0,88526.0,0.11343968]
[1769498649926,0.00987643,88539.0,88526.0,0.10213068]
[1769498650422,0.011307,88538.0,88526.0,0.10213068]
[1769498651222,0.00992061,88538.0,88522.0,0.00023816]
[1769498651426,0.00992061,88538.0,88518.0,0.00023816]
[1769498652222,0.00986166,88535.0,88518.0,0.00023816]
[1769498653319,0.011308,88534.0,88518.0,0.00023816]
[1769498653525,0.02116966,88534.0,88518.0,0.00023816]
[1769498653826,0.011308,88532.0,88518.0,0.00023816]
[1769498654024,0.00992874,88529.0,88517.0,0.10176]
[1769498656344,0.011308,88528.0,88517.0,0.10176]
[1769498656627,0.00988872,88527.0,88517.0,0.10176]
[1769498661232,0.011308,88530.0,88517.0,0.10208887]
[1769498661625,0.011308,88530.0,88520.0,0.16319711]
[1769498662234,0.02119837,88530.0,88517.0,0.10208887]
[1769498667934,0.02119837,88530.0,88517.0,0.00032887]
[1769498669631,0.011308,88528.0,88517.0,0.00032887]
[1769498673240,0.011308,88527.0,88517.0,0.00032887]
[1769498674236,0.00989037,88530.0,88514.0,0.4272]
[1769498674538,0.00971832,88515.0,88503.0,0.5338]
[1769498676039,0.011309,88520.0,88509.0,0.00076436]
[1769498676248,0.011308,88530.0,88513.0,0.00076436]
[1769498676539,0.011308,88530.0,88521.0,0.00076436]
[1769498676739,0.00974521,88536.0,88521.0,0.00076436]
[1769498676942,0.011308,88534.0,88526.0,0.16319711]
[1769498677144,0.11150521,88536.0,88521.0,0.00076436]
[1769498678348,0.011308,88532.0,88521.0,0.00076436]
[1769498681148,0.011308,88534.0,88521.0,0.00076436]
[1769498682947,0.011308,88531.0,88521.0,0.00076436]
[1769498684245,0.0210004,88534.0,88521.0,0.00076436]
[1769498685549,0.011308,88532.0,88521.0,0.00076436]
[1769498686348,0.0096924,88534.0,88521.0,0.00076436]
[1769498687350,0.011308,88532.0,88521.0,0.00076436]
[1769498688549,0.02100261,88532.0,88521.0,0.00076436]
[1769498690053,0.00969211,88531.0,88520.0,0.16319711]
[1769498693058,0.011308,88528.0,88520.0,0.16319711]
[1769498694458,0.02100011,88531.0,88520.0,0.16319711]
[1769498696861,0.011308,88528.0,88520.0,0.16319711]
[1769498700366,0.02100011,88531.0,88520.0,0.16319711]
[1769498702867,0.011308,88529.0,88520.0,0.16319711]
[1769498703370,0.011309,88527.0,88520.0,0.16319711]
[1769498703572,0.011309,88527.0,88519.0,0.00086272]
[1769498703773,0.011308,88530.0,88519.0,0.00086272]
[1769498705067,0.011308,88528.0,88519.0,0.00086272]
[1769498708569,0.011308,88528.0,88517.0,0.16319711]
[1769498708570,0.00974951,88527.0,88517.0,0.16319711]
[1769498708772,0.00974951,88525.0,88517.0,0.16319711]
[1769498708975,0.011308,88529.0,88517.0,0.16319711]
[1769498710970,0.00961026,88528.0,88517.0,0.16319711]
[1769498712774,0.00961026,88524.0,88517.0,0.16319711]
[1769498712980,0.011308,88532.0,88514.0,0.17269041]
[1769498713180,0.011308,88532.0,88520.0,0.16319711]
[1769498713976,0.011308,88530.0,88520.0,0.16319711]
[1769498715085,0.00961026,88529.0,88520.0,0.16319711]
[1769498721891,0.00961026,88529.0,88515.0,0.00964765]
[1769498722084,0.00961026,88529.0,88519.0,0.16319711]
[1769498722292,0.00961026,88529.0,88515.0,0.00964765]
[1769498723486,0.011308,88528.0,88515.0,0.00964765]
[1769498726283,0.00956281,88527.0,88511.0,0.01131]
[1769498726490,0.1018,88534.0,88505.0,0.00924678]
[1769498726491,0.00956281,88518.0,88505.0,0.00924678]
[1769498726876,0.01131,88517.0,88505.0,0.00924678]
[1769498727082,0.00956281,88516.0,88503.0,0.1018]
[1769498728591,0.02087281,88513.0,88503.0,0.1018]
[1769498730293,0.00956281,88513.0,88503.0,0.1018]
[1769498738394,0.01131,88518.0,88503.0,0.1018]
[1769498738605,0.00956281,88517.0,88503.0,0.11104678]
[1769498738992,0.00956281,88517.0,88504.0,0.00924678]
[1769498743602,0.01131,88516.0,88504.0,0.00924678]
[1769498745202,0.00956281,88517.0,88504.0,0.00924678]
[1769498747109,0.01131,88516.0,88504.0,0.00924678]
[1769498754210,0.00956281,88517.0,88504.0,0.00924678]
[1769498754712,0.00956281,88517.0,88505.0,0.00991392]
[1769498757116,0.02087281,88517.0,88505.0,0.00991392]
[1769498757808,0.00918351,88514.0,88497.0,0.00991392]
[1769498758005,0.00918351,88514.0,88497.0,0.01644215]
[1769498758499,0.00918351,88514.0,88498.0,0.00991392]
[1769498758910,0.02049351,88514.0,88498.0,0.00991392]
[1769498760614,0.12229351,88514.0,88498.0,0.00991392]
[1769498760814,0.12229351,88514.0,88499.0,0.00991392]
[1769498762102,0.1018,88514.0,88501.0,0.00991392]
[1769498762412,0.0918,88514.0,88501.0,0.00991392]
[1769498765896,0.01131,88513.0,88501.0,0.00991392]
[1769498766104,0.02049351,88513.0,88501.0,0.00991392]
[1769498769912,0.00918351,88513.0,88501.0,0.00991392]
[1769498771615,0.00918351,88513.0,88502.0,0.011312]
[1769498779417,0.00918351,88513.0,88502.0,0.02119382]
[1769498779824,0.00918351,88513.0,88504.0,0.011311]
[1769498782727,0.00918351,88513.0,88497.0,0.00986566]
[1769498783122,0.00918351,88513.0,88497.0,0.01639399]
[1769498783323,0.00918351,88513.0,88498.0,0.00986566]
[1769498784329,0.00918351,88513.0,88500.0,0.011312]
[1769498785125,0.00918351,88513.0,88498.0,0.00986566]
[1769498786628,0.01131,88512.0,88498.0,0.00986566]
[1769498788231,0.00918351,88513.0,88498.0,0.02117766]
[1769498790923,0.00918351,88513.0,88499.0,0.00975765]
[1769498792933,0.02049351,88513.0,88499.0,0.00975765]
[1769498793733,0.00986221,88512.0,88499.0,0.00975765]
[1769498797745,0.00986221,88512.0,88499.0,0.02106965]
[1769498800045,0.00967863,88511.0,88499.0,0.00975765]
[1769498801240,0.00967863,88511.0,88496.0,0.011312]
[1769498801647,0.00967863,88511.0,88496.0,0.02105069]
[1769498801835,0.00967863,88511.0,88498.0,0.011312]
[1769498802140,0.00967863,88511.0,88498.0,0.02114964]
[1769498804543,0.00967863,88514.0,88501.0,0.00983726]
[1769498821257,0.00967863,88514.0,88502.0,0.011312]
[1769498822646,0.1018,88522.0,88512.0,0.01131]
[1769498822853,0.1018,88522.0,88511.0,0.0095604]
[1769498828565,0.11128507,88522.0,88511.0,0.0095604]
[1769498828763,0.00948507,88532.0,88511.0,0.0095604]
[1769498828960,0.00652681,88527.0,88518.0,0.16327104]
[1769498829163,0.00652681,88527.0,88517.0,0.0208704]
[1769498829365,0.1018,88531.0,88518.0,0.0095604]
[1769498829565,0.00652671,88527.0,88518.0,0.0095604]
[1769498829762,0.00652671,88527.0,88519.0,0.01131]
[1769498829968,0.00652701,88526.0,88521.0,0.011309]
[1769498830160,0.00948507,88532.0,88521.0,0.011309]
[1769498838078,0.00948507,88532.0,88518.0,0.01131]
[1769498838383,0.00948507,88531.0,88516.0,0.0095604]
[1769498838583,0.00948507,88530.0,88516.0,0.0095604]
[1769498840085,0.00948507,88528.0,88516.0,0.0095604]
[1769498842986,0.00948507,88528.0,88517.0,0.01131]
[1769498843490,0.00948507,88528.0,88516.0,0.0095604]
[1769498845687,0.00948507,88528.0,88516.0,0.0208704]
[1769498845883,0.00946735,88532.0,88518.0,0.01131]
[1769498846390,0.00946735,88530.0,88518.0,0.01131]
[1769498849696,0.00946735,88530.0,88517.0,0.00985568]
[1769498851894,0.00946735,88530.0,88517.0,0.02116568]
[1769498852696,0.00946735,88530.0,88519.0,0.011309]
[1769498852891,0.00946735,88530.0,88519.0,0.02116468]
[1769498855895,0.00946735,88530.0,88519.0,0.00985568]
[1769498857396,0.011308,88533.0,88519.0,0.00985568]
[1769498857998,0.02077535,88533.0,88519.0,0.00985568]
[1769498858703,0.00946735,88532.0,88519.0,0.00985568]
[1769498859104,0.00652684,88531.0,88519.0,0.00985568]
[1769498862906,0.01783484,88531.0,88519.0,0.00985568]
[1769498863409,0.011308,88531.0,88519.0,0.00985568]
[1769498866311,0.02077535,88531.0,88519.0,0.00985568]
[1769498868614,0.00946735,88531.0,88519.0,0.00985568]
[1769498879219,0.011308,88530.0,88519.0,0.00985568]
[1769498880017,0.011308,88530.0,88515.0,0.02042744]
[1769498880221,0.0090598,88524.0,88512.0,0.1018]
[1769498880411,0.0090598,88520.0,88508.0,0.00112984]
[1769498881310,0.0090598,88518.0,88508.0,0.00112984]
[1769498900148,0.0090598,88517.0,88508.0,0.00112984]
[1769498900747,0.0090598,88515.0,88502.0,0.0918]
[1769498900938,0.0090598,88515.0,88502.0,0.0618]
[1769498902438,0.00868612,88511.0,88502.0,0.0618]
[1769498907240,0.00847572,88515.0,88502.0,0.0618]
[1769498910650,0.01131,88514.0,88502.0,0.0618]
[1769498911251,0.01977378,88514.0,88502.0,0.0618]
[1769498918054,0.01977378,88514.0,88501.0,0.00996244]
[1769498922657,0.00846378,88514.0,88501.0,0.00996244]
[1769498924155,0.01977378,88514.0,88501.0,0.00996244]
[1769498927773,0.01977343,88512.0,88501.0,0.00996244]
[1769498927950,0.00846343,88512.0,88501.0,0.00996244]
[1769498929056,0.00846343,88512.0,88494.0,0.53084244]
[1769498929265,0.00846343,88506.0,88494.0,0.52088]
[1769498929654,0.00846343,88506.0,88494.0,0.1018]
[1769498931463,0.00846343,88506.0,88494.0,0.11176244]
[1769498932765,0.00846343,88506.0,88495.0,0.00996244]
[1769498932966,0.01977443,88506.0,88495.0,0.00996244]
[1769498934967,0.00846343,88506.0,88495.0,0.00996244]
[1769498935667,0.02016416,88509.0,88495.0,0.00996244]
[1769498936168,0.00885316,88509.0,88495.0,0.00996244]
[1769498937667,0.011311,88508.0,88495.0,0.00996244]
[1769498938667,0.011311,88506.0,88495.0,0.00996244]
[1769498940675,0.00885316,88509.0,88495.0,0.00996244]
[1769498941174,0.011311,88508.0,88495.0,0.00996244]
[1769498942670,0.00872663,88516.0,88495.0,0.00996244]
[1769498942976,0.00872663,88516.0,88493.0,0.00010893]
[1769498942977,0.1018,88515.0,88501.0,0.00927958]
[1769498943179,0.1018,88515.0,88502.0,0.011312]
[1769498943371,0.1018,88515.0,88503.0,0.00927958]
[1769498946373,0.11047291,88515.0,88503.0,0.00927958]
[1769498949578,0.12178291,88515.0,88503.0,0.00927958]
[1769498951669,0.01131,88512.0,88503.0,0.00927958]
[1769498952079,0.12178291,88515.0,88503.0,0.00927958]
[1769498952379,0.01131,88513.0,88500.0,0.16326237]
[1769498952581,0.02029553,88513.0,88499.0,0.00927958]
[1769498952976,0.011311,88510.0,88499.0,0.00927958]
[1769498955282,0.00903299,88507.0,88493.0,0.02070151]
[1769498956383,0.00903299,88507.0,88494.0,0.00927958]
[1769498958577,0.00903299,88507.0,88493.0,0.01142193]
[1769498958578,0.00903299,88507.0,88496.0,0.00927958]
[1769498958781,0.02034399,88511.0,88496.0,0.00927958]
[1769498959983,0.02034399,88511.0,88497.0,0.02059158]
[1769498960482,0.02034399,88511.0,88500.0,0.16326237]
[1769498960878,0.00903299,88511.0,88500.0,0.16326237]
[1769498961079,0.02034399,88511.0,88500.0,0.16326237]
[1769498961785,0.00903299,88511.0,88500.0,0.16326237]
[1769498963483,0.00903299,88511.0,88503.0,0.011311]
[1769498963783,0.11086144,88515.0,88501.0,0.00989134]
[1769498964386,0.11086144,88515.0,88502.0,0.011312]
[1769498964585,0.11086144,88515.0,88504.0,0.011311]
[1769498964983,0.00896583,88514.0,88504.0,0.011311]
[1769498965290,0.00896583,88514.0,88501.0,0.02120334]
[1769498965783,0.011309,88522.0,88505.0,0.00989756]
[1769498965986,0.1018,88521.0,88506.0,0.00989756]
[1769498966484,0.1018,88521.0,88510.0,0.16326237]
[1769498966992,0.11103419,88521.0,88510.0,0.16326237]
[1769498967285,0.011309,88520.0,88506.0,0.00989756]
[1769498969185,0.11103419,88521.0,88506.0,0.00989756]
[1769498969790,0.011309,88520.0,88506.0,0.00989756]
[1769498970685,0.11103419,88521.0,88506.0,0.00989756]
[1769498970886,0.12234319,88521.0,88506.0,0.00989756]
[1769498971793,0.00923989,88520.0,88506.0,0.00989756]
[1769498975696,0.01131,88519.0,88506.0,0.00989756]
[1769498977895,0.00999999,88576.0,88510.0,0.09015033]
[1769498978089,0.00999999,88583.0,88544.0,0.0900765]
[1769498978398,0.00999999,88583.0,88563.0,0.011304]
[1769498978590,0.00999999,88583.0,88565.0,0.011304]
[1769498978784,0.00999999,88583.0,88566.0,0.1018]
[1769498979791,0.00999999,88583.0,88570.0,0.011303]
[1769498980599,0.00999999,88583.0,88566.0,0.113103]
[1769498982299,0.00999999,88583.0,88566.0,0.11332884]
[1769498986898,0.00999999,88583.0,88567.0,0.00032403]
[1769498994608,0.0098899,88581.0,88567.0,0.00032403]
[1769498996002,0.0098899,88581.0,88566.0,0.1018]
[1769498997013,0.0098899,88581.0,88567.0,0.011303]
[1769498998813,0.0098899,88581.0,88569.0,0.011303]
[1769499000314,0.0098899,88581.0,88571.0,0.011303]
[1769499000511,0.14359082,88596.0,88576.0,0.0094978]
[1769499000716,0.15489082,88596.0,88578.0,0.0207998]
[1769499001314,0.0113,88595.0,88578.0,0.0094978]
[1769499001511,0.14359082,88596.0,88578.0,0.0094978]
[1769499001711,0.14359082,88596.0,88579.0,0.011302]
[1769499001912,0.15489082,88596.0,88578.0,0.0094978]
[1769499002215,0.0113,88592.0,88578.0,0.0094978]
[1769499002415,0.0113,88595.0,88578.0,0.0094978]
[1769499002714,0.00956598,88592.0,88578.0,0.0094978]
[1769499002913,0.00956598,88590.0,88578.0,0.0094978]
[1769499003107,0.00956598,88582.0,88568.0,0.00112908]
[1769499003307,0.00956598,88582.0,88569.0,0.10172]
[1769499004711,0.00956598,88582.0,88568.0,0.00112908]
[1769499004912,0.00956598,88582.0,88569.0,0.10172]
[1769499006113,0.14359082,88596.0,88569.0,0.10172]
[1769499006114,0.00364044,88593.0,88570.0,0.0094978]
[1769499006319,0.00364044,88593.0,88569.0,0.10172]
[1769499006320,0.0113,88592.0,88576.0,0.0094978]
[1769499006616,0.00364044,88593.0,88576.0,0.0094978]
[1769499007006,0.01320642,88593.0,88576.0,0.0094978]
[1769499007209,0.01320642,88593.0,88578.0,0.0094978]
[1769499007408,0.02450642,88593.0,88578.0,0.0094978]
[1769499008607,0.01320642,88593.0,88579.0,0.0094978]
[1769499010716,0.00364044,88593.0,88584.0,0.0094978]
[1769499010918,0.03759556,88596.0,88587.0,0.0094978]
[1769499011111,0.03759556,88596.0,88589.0,0.0995743]
[1769499011307,0.00956598,88605.0,88589.0,0.0094978]
[1769499011511,0.02086498,88604.0,88589.0,0.0094978]
[1769499011918,0.00956598,88604.0,88589.0,0.0094978]
[1769499012319,0.00956598,88602.0,88587.0,0.10172]
[1769499012516,0.011299,88601.0,88587.0,0.10172]
[1769499012721,0.00956598,88600.0,88587.0,0.10172]
[1769499014625,0.00956598,88600.0,88588.0,0.0094978]
[1769499017017,0.011299,88599.0,88588.0,0.0094978]
[1769499017527,0.00956598,88613.0,88598.0,0.0094978]
[1769499017728,0.00956598,88613.0,88600.0,0.0094978]
[1769499018919,0.02086398,88613.0,88600.0,0.0094978]
[1769499022536,0.00956598,88613.0,88600.0,0.0094978]
[1769499024229,0.02086398,88613.0,88600.0,0.0094978]
[1769499025128,0.011298,88613.0,88600.0,0.0094978]
[1769499025337,0.00944696,88615.0,88601.0,0.00956995]
[1769499026535,0.02074396,88615.0,88601.0,0.00956995]
[1769499027336,0.00944696,88614.0,88601.0,0.00956995]
[1769499029234,0.00944696,88610.0,88592.0,0.0900765]
[1769499029539,0.00944696,88604.0,88593.0,0.51936]
[1769499032442,0.00944696,88610.0,88596.0,0.00956995]
[1769499032635,0.011298,88613.0,88601.0,0.00956995]
[1769499032940,0.02074496,88613.0,88601.0,0.00956995]
[1769499033141,0.00944696,88612.0,88600.0,0.16292269]
[1769499033940,0.011298,88609.0,88600.0,0.16292269]
[1769499035438,0.00944696,88611.0,88600.0,0.16292269]
[1769499035941,0.011298,88610.0,88600.0,0.16292269]
[1769499036338,0.02074496,88610.0,88600.0,0.16292269]
[1769499037439,0.00944696,88609.0,88600.0,0.03219563]
[1769499039439,0.00944696,88609.0,88599.0,0.16292269]
[1769499040355,0.02074496,88609.0,88599.0,0.16292269]
[1769499041947,0.02074496,88609.0,88599.0,0.06292269]
[1769499043643,0.02074496,88609.0,88597.0,0.11128995]
[1769499044546,0.02074496,88609.0,88598.0,0.00956995]
[1769499044743,0.00944696,88609.0,88598.0,0.00956995]
[1769499045057,0.00944696,88609.0,88599.0,0.16292269]
[1769499045357,0.011298,88610.0,88600.0,0.00956995]
[1769499045554,0.011298,88613.0,88600.0,0.00956995]
[1769499046641,0.00944696,88614.0,88600.0,0.00956995]
[1769499046842,0.00944696,88619.0,88600.0,0.00956995]
[1769499047042,0.011297,88616.0,88600.0,0.00956995]
[1769499047248,0.02074396,88616.0,88600.0,0.00956995]
[1769499049256,0.00944696,88615.0,88600.0,0.00956995]
[1769499053854,0.02074396,88615.0,88600.0,0.00956995]
[1769499054055,0.00944696,88614.0,88600.0,0.00956995]
[1769499056957,0.00944696,88614.0,88601.0,0.00934341]
[1769499061257,0.0212204,88613.0,88601.0,0.00934341]
[1769499065157,0.0099224,88617.0,88601.0,0.00934341]
[1769499066954,0.0212194,88616.0,88601.0,0.00934341]
[1769499067158,0.0099224,88615.0,88601.0,0.00934341]
[1769499069367,0.0212194,88615.0,88601.0,0.00934341]
[1769499070467,0.0099224,88614.0,88601.0,0.00934341]
[1769499070865,0.011297,88615.0,88601.0,0.00934341]
[1769499071370,0.0099224,88614.0,88601.0,0.00934341]
[1769499071663,0.0099224,88608.0,88596.0,0.1917565]
[1769499071866,0.0099224,88608.0,88596.0,0.10168]
[1769499072255,0.0212204,88613.0,88598.0,0.1722661]
[1769499072467,0.0099224,88612.0,88598.0,0.1722661]
[1769499072768,0.011298,88611.0,88598.0,0.1722661]
[1769499072962,0.0099224,88610.0,88598.0,0.1722661]
[1769499073563,0.0099224,88610.0,88598.0,0.00934341]
[1769499074470,0.0212194,88614.0,88598.0,0.00934341]
[1769499074670,0.0212194,88614.0,88600.0,0.16292269]
[1769499074869,0.0212194,88614.0,88600.0,0.1722661]
[1769499075471,0.0099224,88613.0,88600.0,0.1722661]
[1769499077885,0.0099224,88613.0,88601.0,0.00934341]
[1769499079285,0.0099224,88613.0,88597.0,0.00934341]
[1769499079488,0.0099224,88613.0,88596.0,0.10168]
[1769499079686,0.0099224,88613.0,88596.0,0.11102341]
[1769499079879,0.0099224,88613.0,88597.0,0.00934341]
[1769499080387,0.011298,88609.0,88597.0,0.00934341]
[1769499081287,0.011298,88613.0,88597.0,0.00934341]
[1769499081587,0.011298,88613.0,88600.0,0.16292269]
[1769499081784,0.011298,88613.0,88601.0,0.00917838]
[1769499081984,0.011297,88616.0,88601.0,0.00917838]
[1769499082184,0.02032249,88616.0,88601.0,0.00917838]
[1769499082989,0.011298,88612.0,88601.0,0.00917838]
[1769499084494,0.011297,88615.0,88601.0,0.00917838]
[1769499086188,0.011297,88618.0,88601.0,0.00917838]
[1769499089697,0.011297,88615.0,88601.0,0.00917838]
[1769499092199,0.011297,88618.0,88601.0,0.00917838]
[1769499094199,0.011297,88614.0,88601.0,0.00917838]
[1769499094501,0.011297,88614.0,88597.0,0.10168]
[1769499095503,0.011297,88614.0,88598.0,0.011299]
[1769499095687,0.00951439,88616.0,88598.0,0.011299]
[1769499095892,0.011297,88618.0,88598.0,0.011299]
[1769499096301,0.011297,88618.0,88599.0,0.00588433]
[1769499096599,0.011297,88616.0,88599.0,0.00588433]
[1769499099104,0.00951439,88618.0,88599.0,0.00588433]
[1769499099802,0.011298,88614.0,88599.0,0.00588433]
[1769499100206,0.02081139,88618.0,88601.0,0.00606106]
[1769499102201,0.02081139,88618.0,88602.0,0.011299]
[1769499102405,0.02081139,88618.0,88603.0,0.00670891]
[1769499103408,0.10168,88619.0,88605.0,0.00670891]
[1769499104309,0.011297,88620.0,88605.0,0.00670891]
[1769499104713,0.02081139,88620.0,88605.0,0.00670891]
[1769499105510,0.00951439,88617.0,88601.0,0.011299]
[1769499105906,0.00951439,88617.0,88601.0,0.01800477]
[1769499106108,0.00951439,88617.0,88602.0,0.00678983]
[1769499107608,0.00951439,88617.0,88598.0,1.5]
[1769499107808,0.00951439,88617.0,88598.0,1.50678983]
[1769499108010,0.00951439,88617.0,88599.0,0.00683193]
[1769499108418,0.00951439,88617.0,88600.0,0.01813093]
[1769499108600,0.00951439,88617.0,88601.0,0.00683193]
[1769499108804,0.00951439,88617.0,88602.0,0.011299]
[1769499109412,0.00951439,88617.0,88602.0,0.01813093]
[1769499112016,0.00951439,88617.0,88603.0,0.00687208]
[1769499112912,0.02081139,88616.0,88603.0,0.00687208]
[1769499113113,0.00951439,88611.0,88598.0,1.5]
[1769499113418,0.00951439,88611.0,88595.0,0.10168]
[1769499114217,0.00937171,88610.0,88595.0,0.10168]
[1769499116614,0.00937171,88610.0,88595.0,0.11102131]
[1769499118214,0.00937171,88610.0,88596.0,0.00905281]
[1769499121420,0.00937171,88610.0,88597.0,0.011299]
[1769499121615,0.10168,88624.0,88597.0,0.00911047]
[1769499121616,0.00937171,88623.0,88597.0,0.00911047]
[1769499121924,0.00937171,88617.0,88600.0,0.011299]
[1769499122118,0.00937171,88617.0,88600.0,0.02039977]
[1769499122419,0.00937171,88617.0,88600.0,0.00910077]
[1769499122724,0.00937171,88615.0,88600.0,0.00910077]
[1769499125825,0.00937171,88615.0,88601.0,0.00936336]
[1769499127214,0.02066871,88614.0,88601.0,0.00936336]
[1769499127420,0.00937171,88613.0,88597.0,0.00899355]
[1769499128331,0.00937171,88613.0,88598.0,0.00918276]
[1769499129330,0.00937171,88613.0,88597.0,0.011299]
[1769499130328,0.00937171,88613.0,88597.0,0.02045218]
[1769499131328,0.00937171,88613.0,88598.0,0.00915318]
[1769499131829,0.00937171,88613.0,88599.0,0.02045218]
[1769499132423,0.00937171,88613.0,88600.0,0.00936819]
[1769499133830,0.02066971,88613.0,88600.0,0.00936819]
[1769499136638,0.00937171,88613.0,88600.0,0.00936819]
[1769499139234,0.011298,88612.0,88600.0,0.00936819]
[1769499140440,0.00937171,88613.0,88600.0,0.00936819]
[1769499143339,0.11139431,88618.0,88601.0,0.00906984]
[1769499143546,0.02101131,88615.0,88601.0,0.00906984]
[1769499144548,0.00971431,88615.0,88601.0,0.00906984]
[1769499144845,0.112977,88618.0,88601.0,0.00906984]
[1769499145250,0.12271521,88618.0,88601.0,0.00906984]
[1769499145442,0.12271521,88618.0,88602.0,0.1106116]
[1769499145648,0.12271521,88618.0,88603.0,0.0089316]
[1769499146151,0.00973821,88617.0,88603.0,0.0089316]
[1769499146351,0.011297,88616.0,88603.0,0.0089316]
[1769499146750,0.00973821,88617.0,88603.0,0.0089316]
[1769499148346,0.00973821,88617.0,88603.0,0.0202306]
[1769499150946,0.011297,88616.0,88603.0,0.0089316]
[1769499151345,0.02103521,88616.0,88603.0,0.0089316]
[1769499151551,0.10168,88626.0,88603.0,0.10168]
[1769499151552,0.00973821,88611.0,88603.0,0.10168]
[1769499151751,0.00973821,88611.0,88603.0,0.08929191]
[1769499157260,0.00973821,88611.0,88600.0,0.54]
[1769499160463,0.00973821,88611.0,88598.0,0.00940388]
[1769499160662,0.00973821,88598.0,88588.0,0.00112882]
[1769499160858,0.26459278,88610.0,88582.0,0.10168]
[1769499160859,0.00973821,88595.0,88582.0,0.10168]
[1769499161062,0.0113,88590.0,88582.0,0.10168]
[1769499161360,0.00973821,88591.0,88576.0,0.54356]
[1769499162065,0.0113,88593.0,88576.0,0.54356]
[1769499162356,0.00973821,88595.0,88580.0,0.16291278]
[1769499162753,0.00973821,88595.0,88581.0,0.00940388]
[1769499163158,0.02103821,88595.0,88581.0,0.00940388]
[1769499166873,0.00973821,88590.0,88571.0,0.00940388]
[1769499167175,0.011301,88586.0,88572.0,0.00940388]
[1769499169169,0.011301,88589.0,88572.0,0.00940388]
[1769499171670,0.00973821,88590.0,88572.0,0.00940388]
[1769499173866,0.02103921,88590.0,88572.0,0.00940388]
[1769499174873,0.03967962,88589.0,88572.0,0.00940388]
[1769499175066,0.03967962,88589.0,88574.0,0.04119791]
[1769499175271,0.03967962,88595.0,88580.0,0.04119791]
[1769499178373,0.03967962,88595.0,88581.0,0.04119791]
[1769499180474,0.0113,88594.0,88581.0,0.04119791]
[1769499180675,0.0113,88592.0,88581.0,0.04119791]
[1769499181975,0.05097962,88595.0,88581.0,0.04119791]
[1769499183373,0.0113,88593.0,88581.0,0.04119791]
[1769499184678,0.05097962,88594.0,88581.0,0.04119791]
[1769499188381,0.05097962,88591.0,88573.0,0.04119791]
[1769499188776,0.011301,88589.0,88573.0,0.04119791]
[1769499189276,0.03967962,88591.0,88573.0,0.04119791]
[1769499189677,0.03967962,88591.0,88575.0,0.04119791]
[1769499192080,0.0113,88590.0,88575.0,0.04119791]
[1769499192478,0.16291278,88600.0,88575.0,0.04119791]
[1769499192479,0.05098062,88589.0,88575.0,0.04119791]
[1769499192880,0.03967962,88589.0,88578.0,0.05249991]
[1769499193080,0.03967962,88594.0,88580.0,0.05249991]
[1769499194080,0.03967962,88594.0,88580.0,0.04119791]
[1769499197983,0.03967962,88593.0,88580.0,0.04119791]
[1769499198177,0.03967962,88591.0,88577.0,0.011302]
[1769499198385,0.03967962,88591.0,88576.0,0.04119791]
[1769499199485,0.03967962,88589.0,88576.0,0.04119791]
[1769499199881,0.03967962,88585.0,88571.0,0.04119791]
[1769499200184,0.03967962,88585.0,88571.0,0.011303]
[1769499200785,0.03967962,88585.0,88570.0,0.16291278]
[1769499200986,0.05098062,88585.0,88570.0,0.20411069]
[1769499201287,0.0482981,88584.0,88570.0,0.20411069]
[1769499202285,0.0595991,88583.0,88570.0,0.20411069]
[1769499203686,0.0482981,88583.0,88570.0,0.20411069]
[1769499203888,0.0482981,88583.0,88570.0,0.16291278]
[1769499205488,0.0482981,88583.0,88571.0,0.04945252]